[Event "2nd Stars Cup 2017"]
[Site "Anzali"]
[Date "2017.07.13"]
[Round "2"]
[White "Bruzon Batista, Lazaro"]
[Black "Pourramezanali, Amirreza"]
[Result "1/2-1/2"]
[ECO "C07"]
[WhiteElo "2653"]
[BlackElo "2505"]
[Annotator "RC"]
[PlyCount "79"]
[EventDate "2017.??.??"]
[EventType "schev"]
[EventCountry "IRI"]
[SourceTitle "playchess.com"]
[Source "ChessBase"]
[SourceQuality "1"]
[TimeControl "40/5400+30:1800+30"]

1. e4 {[%emt 0:00:00]} e6 {[%emt 0:00:06]} 2. d4 {[%emt 0:00:00]} d5 {[%emt 0:00:03]} 3. Nd2 {[%emt 0:00:00]} c5 {[%emt 0:00:04]} 4. Ngf3 {[%emt 0:00:26]} cxd4 {[%emt 0:00:08]} 5. exd5 {[%emt 0:00:20]} Qxd5 {[%emt 0:00:06]} 6. Bc4 {[%emt 0:00:05]} Qd7 {[%emt 0:00:05]} 7. O-O {[%emt 0:00:34]} a6 {[%emt 0:00:09]} 8. Nb3 {[%emt 0:00:46]} Nc6 {[%emt 0:00:05]} 9. Nbxd4 {[%emt 0:04:59]} Nxd4 {[%emt 0:00:07]} 10. Nxd4 {[%emt 0:00:05]} Qc7 {[%emt 0:00:07]} 11. Qe2 {[%emt 0:02:36]} Bd6 {[%emt 0:00:09]} 12. h3 Ne7 13. a4 {[%emt 0:17:27]} O-O {[%emt 0:00:28]} 14. Bb3 {[%emt 0:03:08]} Ng6 15. Rd1 {[%emt 0:08:19]} Bd7 {[%emt 0:11:29]} 16. Be3 {[%emt 0:14:56]} Bh2+ {[%emt 0:06:34]} 17. Kh1 {[%emt 0:00:24]} Bf4 {[%emt 0:00:08]} 18. Rd2 {[%emt 0:00:20]} Rad8 {[%emt 0:15:35]} 19. Rad1 {[%emt 0:00:56]} Bc8 {[%emt 0:03:49]} 20. Bxf4 {[%emt 0:13:46]} Nxf4 {[%emt 0:00:27]} 21. Qc4 {[%emt 0:00:10]} Qxc4 {[%emt 0:02:52]} 22. Bxc4 {[%emt 0:00:03]} Rfe8 {[%emt 0:04:31]} 23. b4 {[%emt 0:06:48]} Rd7 {[%emt 0:17:29]} 24. Nb3 {[%emt 0:13:03]} Red8 {[%emt 0:01:16]} 25. Rxd7 {[%emt 0:00:58]} Rxd7 {[%emt 0:00:01]} 26. Re1 {[%emt 0:05:01]} b6 {[%emt 0:04:28]} 27. Bf1 {[%emt 0:01:51]} Kf8 {[%emt 0:10:32]} 28. a5 {[%emt 0:03:19]} bxa5 {[%emt 0:01:08]} 29. bxa5 {[%emt 0:00:42]} Nd5 {[%emt 0:03:34]} 30. c4 {[%emt 0:00:43]} Nb4 {[%emt 0:01:26]} 31. Be2 {[%emt 0:00:48]} Ke7 {[%emt 0:02:26]} 32. Kg1 {[%emt 0:00:39]} Rc7 {[%emt 0:04:20]} 33. Nd4 {[%emt 0:01:34]} Nc6 {[%emt 0:02:32]} 34. Nxc6+ {[%emt 0:00:40]} Rxc6 {[%emt 0:00:01]} 35. f3 {[%emt 0:00:45]} Rc5 {[%emt 0:01:00]} 36. Ra1 {[%emt 0:00:02]} e5 {[%emt 0:00:24]} 37. Kf2 {[%emt 0:00:12]} Be6 {[%emt 0:00:10]} 38. Ke3 {[%emt 0:01:03]} Kd6 {[%emt 0:06:16]} 39. Ra4 Bd7 40. Ke4 1/2-1/2

[Event "2nd Stars Cup 2017"]
[Site "Anzali"]
[Date "2017.07.14"]
[Round "3"]
[White "Firouzja, Alireza"]
[Black "Bruzon Batista, Lazaro"]
[Result "1/2-1/2"]
[ECO "C92"]
[WhiteElo "2499"]
[BlackElo "2653"]
[Annotator "RC"]
[PlyCount "80"]
[EventDate "2017.??.??"]
[EventType "schev"]
[EventCountry "IRI"]
[SourceTitle "playchess.com"]
[Source "ChessBase"]
[SourceQuality "1"]
[TimeControl "40/5400+30:1800+30"]

1. e4 {[%emt 0:00:00]} e5 {[%emt 0:00:06]} 2. Nf3 {[%emt 0:00:00]} Nc6 {[%emt 0:00:05]} 3. Bb5 {[%emt 0:00:00]} a6 {[%emt 0:00:06]} 4. Ba4 {[%emt 0:00:00]} Nf6 {[%emt 0:00:04]} 5. O-O {[%emt 0:00:01]} Be7 {[%emt 0:00:07]} 6. Re1 {[%emt 0:00:06]} b5 {[%emt 0:00:04]} 7. Bb3 {[%emt 0:00:05]} d6 {[%emt 0:00:06]} 8. c3 {[%emt 0:00:05]} O-O {[%emt 0:00:06]} 9. h3 {[%emt 0:00:09]} Bb7 {[%emt 0:02:35]} 10. d4 {[%emt 0:00:44]} Re8 {[%emt 0:00:06]} 11. Nbd2 {[%emt 0:00:24]} Bf8 {[%emt 0:00:07]} 12. a3 {[%emt 0:01:15]} h6 {[%emt 0:00:31]} 13. Bc2 {[%emt 0:01:06]} Nb8 {[%emt 0:00:26]} 14. b4 {[%emt 0:07:42]} Nbd7 {[%emt 0:00:47]} 15. Bb2 {[%emt 0:01:45]} g6 {[%emt 0:00:28]} 16. Qb1 {[%emt 0:05:45]} Rb8 {[%emt 0:03:46]} 17. c4 {[%emt 0:05:57]} exd4 {[%emt 0:02:42]} 18. cxb5 {[%emt 0:06:46]} axb5 {[%emt 0:00:18]} 19. Nxd4 {[%emt 0:00:53]} Ba8 {[%emt 0:10:53]} 20. Bb3 {[%emt 0:12:24]} c5 {[%emt 0:08:18]} 21. bxc5 {[%emt 0:02:17]} Nxc5 {[%emt 0:16:53]} 22. Ba2 {[%emt 0:00:02]} Bg7 {[%emt 0:06:52]} 23. e5 {[%emt 0:28:16]} dxe5 {[%emt 0:00:17]} 24. Qxg6 {[%emt 0:05:05]} Bd5 {[%emt 0:09:41]} 25. Qc2 {[%emt 0:01:22]} exd4 {[%emt 0:06:36]} 26. Rxe8+ {[%emt 0:00:45]} Qxe8 {[%emt 0:00:07]} 27. Bxd5 {[%emt 0:00:41]} Na4 {[%emt 0:07:24]} 28. Ba2 {[%emt 0:02:02]} d3 {[%emt 0:00:44]} 29. Qc7 {[%emt 0:00:18]} Nxb2 {[%emt 0:03:34]} 30. Bxf7+ {[%emt 0:00:47]} Qxf7 {[%emt 0:00:03]} 31. Qxb8+ {[%emt 0:00:08]} Kh7 {[%emt 0:00:07]} 32. Qxb5 {[%emt 0:05:25]} Nh5 {[%emt 0:03:20]} 33. Rb1 {[%emt 0:01:54]} Nf4 {[%emt 0:18:31]} 34. Rxb2 {[%emt 0:00:50]} Bxb2 {[%emt 0:00:03]} 35. Qxb2 {[%emt 0:00:11]} Ne2+ {[%emt 0:00:08]} 36. Kh1 {[%emt 0:04:09]} Qxf2 {[%emt 0:00:05]} 37. Qb7+ {[%emt 0:02:07]} Kh8 {[%emt 0:00:42]} 38. Qc8+ {[%emt 0:00:35]} Kh7 {[%emt 0:00:09]} 39. Qd7+ {[%emt 0:00:34]} Kh8 {[%emt 0:00:13]} 40. Qd8+ {[%emt 0:00:00]} Kg7 {[%emt 0:00:04]} 1/2-1/2

[Event "2nd Stars Cup 2017"]
[Site "Anzali"]
[Date "2017.07.15"]
[Round "4"]
[White "Bruzon Batista, Lazaro"]
[Black "Mousavi, Seyed Khalil"]
[Result "1-0"]
[ECO "E06"]
[WhiteElo "2653"]
[BlackElo "2424"]
[Annotator "RC"]
[PlyCount "77"]
[EventDate "2017.??.??"]
[EventType "schev"]
[EventCountry "IRI"]
[SourceTitle "playchess.com"]
[Source "ChessBase"]
[SourceQuality "1"]
[TimeControl "40/5400+30:1800+30"]

1. d4 {[%emt 0:00:00]} d5 {[%emt 0:01:45]} 2. c4 {[%emt 0:00:00]} e6 {[%emt 0:00:08]} 3. Nf3 {[%emt 0:00:37]} Nf6 {[%emt 0:00:13]} 4. g3 {[%emt 0:01:07]} Be7 {[%emt 0:00:52]} 5. Bg2 {[%emt 0:00:05]} O-O {[%emt 0:00:26]} 6. O-O {[%emt 0:00:05]} dxc4 {[%emt 0:00:44]} 7. Qc2 {[%emt 0:00:06]} b5 {[%emt 0:04:08]} 8. a4 {[%emt 0:00:54]} b4 {[%emt 0:00:08]} 9. Nbd2 {[%emt 0:04:26]} Bb7 {[%emt 0:01:29]} 10. Nxc4 {[%emt 0:00:05]} Be4 {[%emt 0:00:53]} 11. Qb3 {[%emt 0:00:47]} Nbd7 {[%emt 0:02:16]} 12. Rd1 {[%emt 0:12:53]} Bd5 {[%emt 0:11:52]} 13. Nfe5 {[%emt 0:08:30]} Nb6 {[%emt 0:02:35]} 14. Bf4 {[%emt 0:20:52]} Nh5 {[%emt 0:15:00]} 15. e4 {[%emt 0:17:50]} Bxc4 {[%emt 0:01:15]} 16. Nxc4 {[%emt 0:00:08]} Nxf4 {[%emt 0:00:08]} 17. gxf4 {[%emt 0:00:03]} Nxc4 {[%emt 0:10:00]} 18. Qxc4 {[%emt 0:00:02]} c6 {[%emt 0:00:09]} 19. Rac1 {[%emt 0:03:14]} Rc8 {[%emt 0:03:34]} 20. e5 Qb6 21. f5 {[%emt 0:13:56]} exf5 {[%emt 0:11:45]} 22. d5 {[%emt 0:00:05]} Bg5 {[%emt 0:09:18]} 23. Rc2 {[%emt 0:00:03]} Kh8 {[%emt 0:07:17]} 24. dxc6 {[%emt 0:04:18]} Rfd8 {[%emt 0:03:03]} 25. Rxd8+ {[%emt 0:01:46]} Qxd8 {[%emt 0:00:06]} 26. Bf3 {[%emt 0:02:28]} Qc7 {[%emt 0:01:40]} 27. Qxb4 {[%emt 0:01:49]} h6 {[%emt 0:06:44]} 28. Qb7 {[%emt 0:02:14]} Bf4 {[%emt 0:01:08]} 29. Qxc7 {[%emt 0:01:03]} Rxc7 {[%emt 0:00:01]} 30. b4 {[%emt 0:00:23]} Bxe5 {[%emt 0:00:58]} 31. b5 {[%emt 0:00:14]} Rc8 {[%emt 0:01:33]} 32. Rd2 {[%emt 0:01:33]} g5 {[%emt 0:02:54]} 33. Rd7 {[%emt 0:00:46]} g4 {[%emt 0:02:06]} 34. Bd5 {[%emt 0:00:32]} f4 {[%emt 0:00:06]} 35. a5 {[%emt 0:03:22]} g3 {[%emt 0:00:25]} 36. hxg3 {[%emt 0:00:54]} fxg3 {[%emt 0:00:06]} 37. fxg3 {[%emt 0:00:43]} Bc3 {[%emt 0:00:39]} 38. Kg2 {[%emt 0:00:16]} Bxa5 {[%emt 0:00:40]} 39. Rxa7 {[%emt 0:00:04]} 1-0

[Event "2nd Stars Cup 2017"]
[Site "Anzali"]
[Date "2017.07.15"]
[Round "4"]
[White "Safarli, Eltaj"]
[Black "Maghsoodloo, Parham"]
[Result "1/2-1/2"]
[ECO "B06"]
[WhiteElo "2641"]
[BlackElo "2584"]
[Annotator "RC"]
[PlyCount "64"]
[EventDate "2017.??.??"]
[EventType "schev"]
[EventCountry "IRI"]
[SourceTitle "playchess.com"]
[Source "ChessBase"]
[SourceQuality "1"]
[TimeControl "40/5400+30:1800+30"]

1. d4 {[%emt 0:00:00]} g6 {[%emt 0:01:55]} 2. e4 {[%emt 0:00:25]} Bg7 {[%emt 0:00:08]} 3. Nc3 {[%emt 0:00:05]} d6 {[%emt 0:00:04]} 4. Bg5 {[%emt 0:00:30]} c6 {[%emt 0:06:46]} 5. Qd2 {[%emt 0:02:36]} Nd7 {[%emt 0:01:11]} 6. f4 {[%emt 0:01:23]} b5 {[%emt 0:02:09]} 7. e5 {[%emt 0:01:36]} f6 {[%emt 0:00:36]} 8. exf6 {[%emt 0:05:17]} Ngxf6 {[%emt 0:01:00]} 9. Bd3 {[%emt 0:00:14]} b4 {[%emt 0:01:51]} 10. Ne4 {[%emt 0:02:02]} Qb6 {[%emt 0:02:52]} 11. Nf3 {[%emt 0:07:38]} Ba6 {[%emt 0:10:11]} 12. Bxf6 {[%emt 0:10:35]} Nxf6 {[%emt 0:00:07]} 13. Neg5 {[%emt 0:01:16]} Bxd3 {[%emt 0:00:32]} 14. Qxd3 {[%emt 0:00:36]} Qb5 {[%emt 0:03:47]} 15. Qe3 {[%emt 0:11:42]} Bh6 {[%emt 0:02:57]} 16. O-O-O {[%emt 0:02:40]} Qf5 {[%emt 0:01:40]} 17. g3 {[%emt 0:02:23]} Nd5 {[%emt 0:00:01]} 18. Qe2 {[%emt 0:02:12]} Bxg5 {[%emt 0:01:40]} 19. Nxg5 {[%emt 0:01:03]} a5 {[%emt 0:02:11]} 20. Rhf1 {[%emt 0:10:07]} h5 {[%emt 0:07:21]} 21. h3 {[%emt 0:03:13]} Kd7 {[%emt 0:01:17]} 22. g4 {[%emt 0:03:06]} hxg4 {[%emt 0:00:18]} 23. hxg4 {[%emt 0:00:02]} Qf6 {[%emt 0:00:09]} 24. Ne4 {[%emt 0:00:38]} Qe6 {[%emt 0:03:47]} 25. Rde1 {[%emt 0:02:49]} Nc7 {[%emt 0:01:54]} 26. Kb1 {[%emt 0:01:08]} Raf8 27. Qd1 {[%emt 0:09:23]} Qc4 {[%emt 0:03:41]} 28. b3 {[%emt 0:02:36]} Qb5 {[%emt 0:07:00]} 29. c4 {[%emt 0:03:28]} bxc3 {[%emt 0:00:18]} 30. Nxc3 {[%emt 0:00:04]} Qb4 {[%emt 0:00:05]} 31. Qd3 {[%emt 0:03:17]} Rh2 {[%emt 0:07:22]} 32. Rc1 {[%emt 0:01:15]} Nb5 {[%emt 0:11:02]} 1/2-1/2